bitfinex/quotes_BTCUSD_20250118
["timestamp","ask_amount","ask_price","bid_price","bid_amount"]
[1737219391881,0.164206,103370.0,103360.0,0.096749]
[1737219393037,0.260946,103370.0,103350.0,1.23288628]
[1737219393244,0.454426,103370.0,103350.0,1.03937028]
[1737219393685,0.454426,103370.0,103360.0,0.08698824]
[1737219393886,0.096749,103360.0,103350.0,0.04019762]
[1737219394098,0.09735828,103360.0,103350.0,0.04019762]
[1737219394316,0.454431,103370.0,103350.0,0.13695362]
[1737219394521,0.09735828,103360.0,103350.0,0.04019762]
[1737219394732,0.647922,103370.0,103350.0,0.71758869]
[1737219394934,0.6483499,103370.0,103350.0,0.84774812]
[1737219395138,0.6483499,103370.0,103350.0,1.04126412]
[1737219395353,0.2613809,103370.0,103350.0,1.23478112]
[1737219395569,0.1646339,103370.0,103360.0,0.096749]
[1737219395768,0.2613749,103370.0,103350.0,1.55093531]
[1737219395967,0.4548539,103370.0,103350.0,1.03710509]
[1737219396220,0.4548539,103370.0,103360.0,0.08677295]
[1737219397340,0.4548539,103370.0,103350.0,0.82018971]
[1737219397759,0.4548539,103370.0,103360.0,0.03612234]
[1737219397962,0.62884694,103370.0,103360.0,0.03612234]
[1737219398099,0.42636955,103370.0,103360.0,0.03612234]
[1737219398650,0.096749,103360.0,103350.0,0.3993941]
[1737219398854,0.096749,103360.0,103350.0,0.00891582]
[1737219399262,0.61986755,103370.0,103350.0,0.09780793]
[1737219399472,0.096749,103360.0,103350.0,0.00104993]
[1737219399679,0.096749,103360.0,103350.0,0.03723338]
[1737219399881,0.09735828,103360.0,103350.0,0.03723338]
[1737219400312,0.096749,103360.0,103350.0,0.03723338]
[1737219401298,0.09735828,103360.0,103350.0,0.03723338]
[1737219401794,0.096749,103360.0,103350.0,0.03723338]
[1737219402044,0.84261155,103370.0,103350.0,0.32750438]
[1737219402045,0.45237255,103370.0,103350.0,0.32750438]
[1737219402790,0.64586855,103370.0,103350.0,0.32750438]
[1737219403015,0.45237255,103370.0,103350.0,0.32750438]
[1737219403221,0.45237255,103370.0,103350.0,0.3305299]
[1737219403655,0.21594855,103370.0,103350.0,0.5240239]
[1737219403868,0.21594855,103370.0,103350.0,0.3305159]
[1737219403869,0.40942855,103370.0,103350.0,0.3305159]
[1737219404072,0.40942855,103370.0,103350.0,0.5240329]
[1737219404285,0.60290855,103370.0,103350.0,0.1370089]
[1737219404495,0.59594855,103370.0,103350.0,0.3305249]
[1737219404695,0.60290855,103370.0,103350.0,0.3305249]
[1737219405719,0.40942855,103370.0,103350.0,0.3305249]
[1737219406076,0.60291555,103370.0,103350.0,0.3305249]
[1737219406447,0.40942855,103370.0,103350.0,0.5240409]
[1737219406791,0.21594855,103370.0,103350.0,0.4272839]
[1737219407015,0.21594855,103370.0,103350.0,0.5240339]
[1737219407016,0.40942955,103370.0,103350.0,0.5240339]
[1737219407209,0.21594855,103370.0,103350.0,0.5240259]
[1737219407487,0.40942855,103370.0,103350.0,0.5240259]
[1737219408344,0.40942855,103370.0,103350.0,0.61079885]
[1737219408788,0.40942855,103370.0,103350.0,0.61563939]
[1737219409462,0.40942855,103370.0,103350.0,1.06632056]
[1737219409824,0.04310955,103370.0,103360.0,0.096749]
[1737219410687,0.03614955,103370.0,103360.0,0.09977452]
[1737219410892,0.13288855,103370.0,103360.0,0.09977452]
[1737219411095,0.13288855,103370.0,103360.0,0.13595797]
[1737219411505,0.03614955,103370.0,103360.0,0.13595797]
[1737219411862,0.13288855,103370.0,103360.0,0.13595797]
[1737219412343,0.13288855,103370.0,103360.0,0.03920897]
[1737219412586,0.13288855,103370.0,103360.0,0.13595797]
[1737219412792,0.13288855,103370.0,103360.0,0.14079839]
[1737219413129,0.13288855,103370.0,103360.0,0.04404939]
[1737219413746,0.13288855,103370.0,103360.0,0.14079839]
[1737219414364,0.13288855,103370.0,103360.0,0.04404939]
[1737219420117,0.13349783,103370.0,103360.0,0.04404939]
[1737219420324,0.23349783,103370.0,103360.0,0.04404939]
[1737219420526,0.23288855,103370.0,103360.0,0.04404939]
[1737219420720,0.36238855,103370.0,103360.0,0.04404939]
[1737219421079,0.36238855,103370.0,103360.0,0.03920897]
[1737219421667,0.46234855,103370.0,103360.0,0.03920897]
[1737219422779,0.46234855,103370.0,103360.0,0.03618345]
[1737219422980,0.46158936,103370.0,103360.0,0.03618345]
[1737219423393,0.61158936,103370.0,103360.0,0.03618345]
[1737219423986,0.61158936,103370.0,103360.0,0.03218345]
[1737219425168,0.196749,103360.0,103350.0,0.00104993]
[1737219425374,0.19735828,103360.0,103350.0,0.00104993]
[1737219425791,0.103709,103360.0,103350.0,0.00104993]
[1737219425993,0.10431828,103360.0,103350.0,0.00407576]
[1737219426603,0.00756928,103360.0,103350.0,0.10083376]
[1737219426810,0.103709,103360.0,103350.0,0.10083376]
[1737219427537,0.103709,103360.0,103350.0,0.00891685]
[1737219427748,0.10431828,103360.0,103350.0,0.00891685]
[1737219429019,0.20427828,103360.0,103350.0,0.00891685]
[1737219429196,0.20427828,103360.0,103350.0,0.09084871]
[1737219430224,0.20427828,103360.0,103350.0,0.00407576]
[1737219432665,0.20427828,103360.0,103350.0,0.04030428]
[1737219432867,0.21397142,103360.0,103350.0,0.04030428]
[1737219433846,0.23333257,103360.0,103350.0,0.04030428]
[1737219434046,0.23272329,103360.0,103350.0,0.04030428]
[1737219434937,0.13276329,103360.0,103350.0,0.04030428]
[1737219435143,0.23333257,103360.0,103350.0,0.04030428]
[1737219435337,0.23272329,103360.0,103350.0,0.04030428]
[1737219437588,0.13276329,103360.0,103350.0,0.04030428]
[1737219437789,0.23333257,103360.0,103350.0,0.04030428]
[1737219438010,0.23272329,103360.0,103350.0,0.04030428]
[1737219438794,0.23272329,103360.0,103350.0,0.03727845]
[1737219439206,0.11340214,103360.0,103350.0,0.03727845]
[1737219439618,0.21336214,103360.0,103350.0,0.03727845]
[1737219440012,0.11340214,103360.0,103350.0,0.03727845]
[1737219441476,0.11340214,103360.0,103350.0,0.13403645]
[1737219441688,0.11340214,103360.0,103350.0,0.03727845]
[1737219442085,0.01665314,103360.0,103350.0,0.13403645]
[1737219442243,0.11382994,103360.0,103350.0,0.1240514]
[1737219442654,0.01708094,103360.0,103350.0,0.2046514]
[1737219442854,0.11382994,103360.0,103350.0,0.3014094]
[1737219443061,0.01012094,103360.0,103350.0,0.40065021]
[1737219443521,0.01012094,103360.0,103350.0,0.53080964]
[1737219443676,0.01012094,103360.0,103350.0,0.53383521]
[1737219443915,0.10686994,103360.0,103350.0,0.53383521]
[1737219444407,0.01012094,103360.0,103350.0,0.53383521]
[1737219444607,0.01012094,103360.0,103350.0,1.0283472]
[1737219445349,0.01012094,103360.0,103350.0,1.24527958]
[1737219445548,0.01012094,103360.0,103350.0,1.2501203]
[1737219446033,0.10686994,103360.0,103350.0,1.2501203]
[1737219446235,0.10686994,103360.0,103350.0,1.1533623]
[1737219446371,0.10686994,103360.0,103350.0,1.2501203]
[1737219446577,0.10686994,103360.0,103350.0,1.03318792]
[1737219447335,0.10686994,103360.0,103350.0,0.93642992]
[1737219447526,0.10686994,103360.0,103350.0,1.03318792]
[1737219448535,0.01012094,103360.0,103350.0,1.03318792]
[1737219449487,0.01012094,103360.0,103350.0,1.05618792]
[1737219449704,0.0004278,103360.0,103350.0,1.36331925]
[1737219449914,0.0004278,103360.0,103350.0,1.49350961]
[1737219450761,0.0019478,103360.0,103350.0,1.49350961]
[1737219451158,2.746e-05,103360.0,103350.0,1.49350961]
[1737219451439,0.0004279,103370.0,103360.0,0.252049]
[1737219451639,0.0004279,103370.0,103360.0,0.35128981]
[1737219452405,0.0004279,103370.0,103360.0,0.3591561]
[1737219452636,0.0004279,103370.0,103360.0,0.5091561]
[1737219452834,0.0004279,103370.0,103360.0,0.54538462]
[1737219453081,0.0004279,103370.0,103360.0,1.12680496]
[1737219453292,0.0004279,103380.0,103370.0,0.119739]
[1737219453469,0.0004279,103380.0,103370.0,0.36897981]
[1737219453668,0.0004279,103380.0,103370.0,0.40520833]
[1737219453873,0.0004279,103380.0,103370.0,0.48830833]
[1737219454475,0.0004279,103380.0,103370.0,0.4913339]
[1737219454677,0.0004279,103380.0,103370.0,1.20279542]
[1737219455708,0.0004279,103380.0,103370.0,1.20763614]
[1737219458026,0.0004279,103380.0,103370.0,0.88182933]
[1737219458211,0.0004279,103380.0,103370.0,0.57811066]
[1737219458378,0.0004279,103380.0,103370.0,0.49501066]
[1737219458587,0.0971579,103380.0,103370.0,0.22527166]
[1737219458787,0.0971579,103380.0,103370.0,0.12603085]
[1737219458993,0.09776718,103380.0,103370.0,0.12603085]
[1737219459210,0.09776718,103380.0,103370.0,0.12300528]
[1737219459410,0.0971579,103380.0,103370.0,0.15189101]
[1737219460101,0.09776718,103380.0,103370.0,0.15189101]
[1737219460508,0.09776718,103380.0,103370.0,0.12300528]
[1737219460905,0.09776718,103380.0,103370.0,0.03622852]
[1737219461474,0.24426718,103380.0,103370.0,0.03622852]
[1737219461679,0.2436579,103380.0,103370.0,0.03622852]
[1737219461812,0.42605871,103380.0,103370.0,0.03622852]
[1737219462012,0.1,103370.0,103350.0,0.03296123]
[1737219462215,0.096749,103360.0,103350.0,0.03296123]
[1737219462423,0.483731,103370.0,103350.0,0.32323223]
[1737219462801,0.483731,103370.0,103350.0,0.51673923]
[1737219463007,0.483731,103370.0,103350.0,0.52397613]
[1737219463666,0.677224,103370.0,103350.0,0.52397613]
[1737219464049,0.483729,103370.0,103350.0,0.52397613]
[1737219464475,0.677221,103370.0,103350.0,0.52397613]
[1737219464681,0.483728,103370.0,103350.0,0.52397613]
[1737219464863,0.677219,103370.0,103350.0,0.52397613]
[1737219465060,0.483727,103370.0,103350.0,0.52397613]
[1737219466013,0.096749,103360.0,103350.0,0.35346313]
[1737219466308,0.4841568,103370.0,103350.0,0.35346313]
[1737219466545,0.096749,103360.0,103350.0,0.06319813]
[1737219466940,0.09735828,103360.0,103350.0,0.06319813]
[1737219467609,0.17735828,103360.0,103350.0,0.06319813]
[1737219467820,0.21411419,103360.0,103350.0,0.04019813]
[1737219468023,0.46146491,103360.0,103350.0,0.04019813]
[1737219468240,0.56070572,103360.0,103350.0,0.04019813]
[1737219468860,0.56070572,103360.0,103350.0,0.03717256]
[1737219469068,0.52394981,103360.0,103350.0,0.00104993]
[1737219469489,0.42394981,103360.0,103350.0,0.70104993]
[1737219474793,0.43086981,103360.0,103350.0,0.70104993]
[1737219476325,0.33090981,103360.0,103350.0,0.70104993]
[1737219477732,0.43086981,103360.0,103350.0,0.70104993]
[1737219478120,0.33090981,103360.0,103350.0,0.70104993]
[1737219478582,0.43086981,103360.0,103350.0,0.70104993]
[1737219478950,0.33090981,103360.0,103350.0,0.70104993]
[1737219479365,0.33090981,103360.0,103350.0,0.82080793]
[1737219479366,0.096749,103360.0,103350.0,0.82080793]
[1737219479573,0.103669,103360.0,103350.0,0.82080793]
[1737219479782,0.10427828,103360.0,103350.0,0.72404993]
[1737219479989,0.20423828,103360.0,103350.0,0.72404993]
[1737219480412,0.103669,103360.0,103350.0,0.82080793]
[1737219481246,0.20423828,103360.0,103350.0,0.72404993]
[1737219481873,0.20423828,103360.0,103350.0,0.82080793]
[1737219482285,0.20423828,103360.0,103350.0,0.72404993]
[1737219483321,0.20423828,103360.0,103350.0,0.70104993]
[1737219483535,0.34820613,103360.0,103350.0,0.70104993]
[1737219483736,0.45066981,103360.0,103350.0,0.70104993]
[1737219484162,0.43156981,103360.0,103350.0,0.70104993]
[1737219485344,0.48160981,103360.0,103350.0,0.66617689]
[1737219485733,0.58085062,103360.0,103350.0,0.59793276]
[1737219485935,0.58085062,103360.0,103350.0,0.5777175]
[1737219487373,0.58085062,103360.0,103350.0,0.5714975]
[1737219487758,0.58085062,103360.0,103350.0,0.53807973]
[1737219487998,0.58085062,103360.0,103350.0,0.52367039]
[1737219489725,0.58085062,103360.0,103350.0,0.52456877]
[1737219489923,0.58085062,103360.0,103350.0,0.50152446]
[1737219490595,0.096777,103330.0,103320.0,0.06486056]
[1737219490788,0.09738628,103330.0,103320.0,0.06486056]
[1737219491949,0.10430628,103330.0,103320.0,0.06486056]
[1737219492705,0.10430628,103330.0,103320.0,0.06788663]
[1737219496283,0.40946678,103340.0,103320.0,0.16467263]
[1737219496496,0.01919178,103340.0,103330.0,0.196677]
[1737219496707,0.02611178,103340.0,103330.0,0.196677]
[1737219496884,0.00692,103340.0,103330.0,0.196677]
[1737219497732,0.00692,103340.0,103330.0,0.20454469]
[1737219497945,0.00752928,103340.0,103330.0,0.20454469]
[1737219498132,0.10251418,103340.0,103330.0,0.10776769]
[1737219498341,0.10080847,103340.0,103330.0,0.10776769]
[1737219498537,0.09961289,103340.0,103330.0,0.10776769]
[1737219498742,0.09084157,103340.0,103330.0,0.10776769]
[1737219499083,0.09776157,103340.0,103330.0,0.10776769]
[1737219499263,0.19776157,103340.0,103330.0,0.03086769]
[1737219499471,0.23558321,103340.0,103330.0,0.03086769]
[1737219499677,0.43478402,103340.0,103330.0,0.00786769]
[1737219500313,0.39696238,103340.0,103330.0,0.03086769]
[1737219500760,0.40656484,103340.0,103330.0,0.03086769]
[1737219501973,0.40656484,103340.0,103330.0,0.03129559]
[1737219502466,0.40746343,103340.0,103330.0,0.03129559]
[1737219505039,0.30822262,103340.0,103330.0,0.03129559]
[1737219506585,0.30822262,103340.0,103330.0,0.06018132]
[1737219507438,0.25539909,103340.0,103330.0,0.06018132]
[1737219507647,0.30822262,103340.0,103330.0,0.06018132]
[1737219507854,0.20822262,103340.0,103330.0,0.06018132]
[1737219508079,0.10826262,103340.0,103330.0,0.06018132]
[1737219508501,0.01742105,103340.0,103330.0,0.13818132]
[1737219508720,0.00089859,103340.0,103330.0,0.28205832]
[1737219508924,0.00089859,103340.0,103330.0,0.53129913]
[1737219510051,0.00089859,103340.0,103330.0,0.5024134]
[1737219510286,0.09766559,103340.0,103330.0,0.99278875]
[1737219510752,0.09766559,103340.0,103330.0,0.92268875]
[1737219510991,0.09766559,103340.0,103330.0,0.84468875]
[1737219511209,0.38541916,103340.0,103330.0,0.0903237]
[1737219511418,0.38541916,103340.0,103330.0,0.1133237]
[1737219511638,0.48537916,103340.0,103330.0,0.0903237]
[1737219511861,0.48537916,103340.0,103330.0,0.1133237]
[1737219512379,0.48537916,103340.0,103330.0,0.02645397]
[1737219512587,0.56037916,103340.0,103330.0,0.02645397]
[1737219513455,0.60957916,103340.0,103330.0,0.02645397]
[1737219514447,0.40961916,103340.0,103330.0,0.02645397]
[1737219514924,0.41932778,103340.0,103330.0,0.02645397]
[1737219515383,0.41932778,103340.0,103330.0,0.00345397]
[1737219519457,0.33081502,103340.0,103330.0,0.00345397]
[1737219519835,0.43081502,103340.0,103330.0,0.00345397]
[1737219520075,0.40657502,103340.0,103330.0,0.00345397]
[1737219520276,0.31353502,103340.0,103330.0,0.00345397]
[1737219520552,0.41349502,103340.0,103330.0,0.00345397]
[1737219521759,0.31353502,103340.0,103330.0,0.00345397]
[1737219521988,0.31349502,103340.0,103330.0,0.02645397]
[1737219522190,0.10737421,103340.0,103330.0,0.02645397]
[1737219522391,0.11429421,103340.0,103330.0,0.02645397]
[1737219522595,0.21425421,103340.0,103330.0,0.02645397]
[1737219522812,0.00089859,103340.0,103330.0,0.12323097]
[1737219523128,0.00089859,103340.0,103330.0,0.25123097]
[1737219524567,0.00089859,103340.0,103330.0,0.43734151]
[1737219524774,0.00089859,103340.0,103330.0,0.58734151]
[1737219525342,0.00089859,103340.0,103330.0,1.21184217]
[1737219526171,0.00089859,103340.0,103330.0,1.34191435]
[1737219526577,0.00089859,103340.0,103330.0,1.34675557]
[1737219527840,0.00089859,103340.0,103330.0,1.09751476]
[1737219528083,0.09766559,103340.0,103330.0,0.95962402]
[1737219528310,0.18548695,103340.0,103330.0,0.93662402]
[1737219528498,0.38544695,103340.0,103330.0,0.93662402]
[1737219528874,0.38544695,103340.0,103330.0,0.61584203]
[1737219529075,0.37742559,103340.0,103330.0,0.00829519]
[1737219529283,0.4766664,103340.0,103330.0,0.00829519]
[1737219529689,0.096786,103320.0,103310.0,0.51984065]
[1737219529893,0.096786,103320.0,103310.0,0.60677837]
[1737219530098,0.096786,103320.0,103310.0,0.62977837]
[1737219530479,0.490302,103330.0,103320.0,0.023]
[1737219531073,0.683869,103330.0,103310.0,0.023]
[1737219531655,0.77024884,103330.0,103310.0,0.023]
[1737219531868,0.77024884,103330.0,103300.0,1.01792887]
[1737219531869,0.1,103320.0,103300.0,0.53392187]
[1737219532105,0.397293,103320.0,103310.0,0.023]
[1737219533586,0.497253,103320.0,103310.0,0.023]
[1737219536484,0.497253,103320.0,103310.0,0.0234278]
[1737219539948,0.50672319,103320.0,103310.0,0.0234278]
[1737219540979,0.50672319,103320.0,103310.0,0.02826982]
[1737219541445,0.40676319,103320.0,103310.0,0.02826982]
[1737219541653,0.50672319,103320.0,103310.0,0.02826982]
[1737219542462,0.50672319,103320.0,103310.0,0.03129608]
[1737219543370,0.50672319,103320.0,103310.0,0.0234278]
[1737219544143,0.656004,103320.0,103310.0,0.0234278]
[1737219544341,0.636004,103320.0,103310.0,0.0004278]
[1737219544753,0.636004,103320.0,103310.0,0.00345481]
[1737219545370,0.71112705,103320.0,103310.0,0.00345481]
[1737219545575,0.296765,103300.0,103290.0,0.21706766]
[1737219545775,0.296765,103300.0,103290.0,0.21757218]
[1737219545979,0.296765,103300.0,103290.0,0.00050452]
[1737219546181,0.39600581,103300.0,103290.0,0.00050452]
[1737219546383,0.37600581,103300.0,103290.0,0.00050452]
[1737219546594,0.57158662,103300.0,103290.0,0.00050452]
[1737219547234,0.57158662,103300.0,103290.0,0.00012427]
[1737219547802,0.30296581,103300.0,103290.0,0.00012427]
[1737219548104,0.30296581,103300.0,103290.0,0.11993827]
[1737219548105,0.00692,103300.0,103290.0,0.11993827]
[1737219548508,0.103725,103300.0,103290.0,0.02312427]
[1737219548833,0.203685,103300.0,103290.0,0.02312427]
[1737219549397,0.196765,103300.0,103290.0,0.02312427]
[1737219549614,0.203685,103300.0,103290.0,0.02312427]
[1737219552367,0.390363,103310.0,103290.0,0.11993627]
[1737219552586,0.00692,103300.0,103290.0,0.31356527]
[1737219553003,0.00692,103300.0,103290.0,0.11993627]
[1737219553217,0.390403,103310.0,103290.0,0.31356427]
[1737219553445,0.690885,103310.0,103290.0,0.11993627]
[1737219553654,0.690885,103310.0,103290.0,0.31356527]
[1737219553858,0.490362,103310.0,103290.0,0.31356527]
[1737219554079,0.397282,103310.0,103290.0,0.50719427]
[1737219554286,0.397282,103310.0,103290.0,0.31356527]
[1737219554727,0.397282,103310.0,103290.0,0.50719427]
[1737219554907,0.297322,103310.0,103290.0,0.50719427]
[1737219555135,0.72753478,103320.0,103310.0,0.096796]
[1737219555136,0.01036878,103320.0,103310.0,0.096796]
[1737219555350,0.00089859,103320.0,103310.0,0.119796]
[1737219556002,0.09768459,103320.0,103310.0,0.119796]
[1737219556210,0.19764459,103320.0,103310.0,0.023]
[1737219557243,0.28616995,103320.0,103310.0,0.023]
[1737219557447,0.38616995,103320.0,103310.0,0.023]
[1737219557648,0.29764459,103320.0,103310.0,0.023]
[1737219558028,0.096796,103310.0,103300.0,0.096804]
[1737219558669,0.290389,103310.0,103290.0,0.75223376]
[1737219559100,0.096796,103310.0,103300.0,0.096805]
[1737219560394,0.096796,103310.0,103300.0,0.023]
[1737219560556,0.09769459,103310.0,103300.0,0.023]
[1737219561176,0.09769459,103310.0,103300.0,0.119805]
[1737219561731,0.09769459,103310.0,103300.0,0.023]
[1737219561944,0.096805,103300.0,103290.0,0.08247933]
[1737219562170,0.096805,103300.0,103290.0,0.00357933]
[1737219562410,0.096805,103300.0,103290.0,0.02657933]
[1737219563411,0.196805,103300.0,103290.0,0.02355217]
[1737219563673,0.29604581,103300.0,103290.0,0.02355217]
[1737219564857,0.20654944,103300.0,103290.0,0.02355217]
[1737219565892,0.30650944,103300.0,103290.0,0.02355217]
[1737219566110,0.325415,103300.0,103290.0,0.02355217]
[1737219566479,0.30650944,103300.0,103290.0,0.02355217]
[1737219571647,0.20654944,103300.0,103290.0,0.02355217]
[1737219571849,0.40575025,103300.0,103290.0,0.02355217]
[1737219572833,0.41271025,103300.0,103290.0,0.02355217]
[1737219573357,0.31346944,103300.0,103290.0,0.02355217]
[1737219573767,0.31346944,103300.0,103290.0,0.0035799]
[1737219574807,0.49281025,103300.0,103290.0,0.0035799]
[1737219575227,0.49281025,103300.0,103290.0,0.0265799]
[1737219576294,0.44285025,103300.0,103290.0,0.0035799]
[1737219576620,0.54209106,103300.0,103290.0,0.0035799]
[1737219577266,0.54209106,103300.0,103290.0,0.00055217]
[1737219577469,0.490448,103280.0,103270.0,0.023]
[1737219577673,0.490448,103280.0,103270.0,0.02315069]
[1737219578150,0.490448,103280.0,103270.0,0.00015069]
[1737219578353,0.56792351,103280.0,103270.0,0.00015069]
[1737219578905,0.490448,103280.0,103270.0,0.00015069]
[1737219579109,0.497408,103280.0,103270.0,0.00015069]
[1737219580652,0.53090825,103300.0,103270.0,0.27310769]
[1737219580876,0.096814,103290.0,103280.0,0.119819]
[1737219581787,0.59379844,103300.0,103280.0,0.507105]
[1737219582000,0.59379844,103300.0,103280.0,0.096819]
[1737219582001,0.31347744,103300.0,103280.0,0.096819]
[1737219582171,0.50709744,103300.0,103280.0,0.484108]
[1737219582386,0.70071744,103300.0,103280.0,0.48713571]
[1737219582624,0.096814,103290.0,103280.0,0.31648871]
[1737219582822,0.196774,103290.0,103280.0,0.02602771]
[1737219583028,0.196774,103290.0,103280.0,0.12285171]
[1737219583934,0.196774,103290.0,103280.0,0.02602771]
[1737219584367,0.196774,103290.0,103280.0,0.023]
[1737219584814,0.196774,103290.0,103280.0,0.0234279]
[1737219585511,0.196774,103290.0,103280.0,0.1202519]
[1737219585716,0.096814,103290.0,103280.0,0.1202519]
[1737219586138,0.096814,103290.0,103280.0,0.0234279]
[1737219586359,0.196774,103290.0,103280.0,0.1202519]
[1737219586558,0.196774,103290.0,103280.0,0.0234279]
[1737219586771,0.196774,103290.0,103280.0,0.1202519]
[1737219587422,0.096814,103290.0,103280.0,0.1202519]
[1737219587648,0.196774,103290.0,103280.0,0.0234279]
[1737219587852,0.23440608,103290.0,103280.0,0.0004279]
[1737219588067,0.33440608,103290.0,103280.0,0.00345573]
[1737219588213,0.296774,103290.0,103280.0,0.00345573]
[1737219589569,0.52125481,103290.0,103280.0,0.0004279]
[1737219590404,0.47055481,103290.0,103280.0,0.0004279]
[1737219591404,1.17055481,103290.0,103280.0,0.0004279]
[1737219592698,0.47055481,103290.0,103280.0,0.0004279]
[1737219594882,0.1245,103280.0,103270.0,6.9e-07]
[1737219595088,0.47056481,103280.0,103270.0,6.9e-07]
[1737219595297,0.246842,103260.0,103250.0,0.0008967]
[1737219595495,0.35320281,103260.0,103250.0,0.0008967]
[1737219595929,0.37224456,103260.0,103250.0,0.0008967]
[1737219596061,0.49674456,103260.0,103250.0,0.0008967]
[1737219597292,0.47770281,103260.0,103250.0,0.0008967]
[1737219598175,0.29608281,103260.0,103250.0,0.0008967]
[1737219598382,0.303922,103260.0,103250.0,0.0008967]
[1737219598607,0.296802,103260.0,103250.0,0.0008967]
[1737219598806,0.303922,103260.0,103250.0,0.0008967]
[1737219599020,0.40316281,103260.0,103250.0,0.0008967]
[1737219599433,0.303922,103260.0,103250.0,0.0008967]
[1737219600183,0.303452,103260.0,103250.0,0.0008967]
[1737219600318,0.196332,103260.0,103250.0,0.0238967]
[1737219600520,0.203452,103260.0,103250.0,0.0238967]
[1737219600743,0.009591,103260.0,103250.0,0.0977487]
[1737219600947,0.00712,103260.0,103250.0,0.1207487]
[1737219601127,0.203922,103260.0,103250.0,0.0238967]
[1737219601729,0.70051129,103270.0,103250.0,0.1207487]
[1737219601925,0.00712,103270.0,103260.0,0.201642]
[1737219602133,0.103953,103270.0,103260.0,0.201642]
[1737219602360,0.00712,103270.0,103260.0,0.201642]
[1737219602601,0.11618698,103280.0,103270.0,0.096833]
[1737219602828,0.12330098,103280.0,103270.0,0.119833]
[1737219603163,0.12330098,103280.0,103270.0,0.023]
[1737219603363,0.203904,103280.0,103270.0,0.023]
[1737219604186,0.11389533,103280.0,103270.0,0.119833]
[1737219604385,0.01707133,103280.0,103270.0,0.119833]
[1737219604688,0.00995133,103280.0,103270.0,0.21907381]
[1737219604978,0.00089901,103290.0,103280.0,0.195424]
[1737219605189,0.01077956,103290.0,103280.0,0.195424]
[1737219605484,0.00089901,103290.0,103280.0,0.34273298]
[1737219605639,0.00089901,103290.0,103280.0,0.49176481]
[1737219606896,0.00089901,103290.0,103280.0,0.49479205]
[1737219607384,0.00089901,103290.0,103280.0,1.5799664]
[1737219608403,0.00089901,103290.0,103280.0,1.58481159]
[1737219608669,0.00089901,103290.0,103280.0,1.58490954]
[1737219608920,0.00089859,103310.0,103300.0,0.119805]
[1737219609157,0.00089859,103310.0,103300.0,0.21904581]
[1737219609158,0.00104966,103310.0,103300.0,0.21904581]
[1737219611062,0.00104966,103310.0,103300.0,0.45214581]
[1737219611847,0.00104966,103310.0,103300.0,0.202905]
[1737219615881,0.00104966,103310.0,103300.0,0.023]
[1737219616224,0.58501866,103310.0,103290.0,0.290439]
[1737219616402,0.39141466,103310.0,103290.0,0.290439]
[1737219616600,0.00104966,103310.0,103300.0,0.096805]
[1737219616803,0.10100966,103310.0,103300.0,0.096805]
[1737219617012,0.00104966,103310.0,103300.0,0.096805]
[1737219617214,0.00104966,103310.0,103300.0,0.22001379]
[1737219617468,0.00104966,103310.0,103300.0,0.21904581]
[1737219618185,0.00104966,103310.0,103300.0,0.096805]
[1737219619843,0.00104966,103310.0,103300.0,0.21904581]
[1737219620242,0.00104966,103310.0,103300.0,0.30214581]
[1737219622189,0.00104966,103310.0,103300.0,0.202905]
[1737219622527,0.00104966,103310.0,103300.0,0.41104512]
[1737219622667,0.00104966,103310.0,103300.0,0.60707714]
[1737219623995,0.00104966,103310.0,103300.0,1.31634188]
[1737219624429,0.00089859,103340.0,103330.0,0.119777]
[1737219624636,0.00140279,103340.0,103330.0,0.30128547]
[1737219624835,0.00140279,103340.0,103330.0,0.30031781]
[1737219629885,0.00131441,103340.0,103330.0,0.30031781]
[1737219630966,0.00131441,103340.0,103330.0,0.45031781]
[1737219631722,0.00131441,103340.0,103330.0,0.55824914]
[1737219632096,0.00131441,103340.0,103330.0,1.10604914]
[1737219632307,0.00131441,103340.0,103330.0,0.55824914]
[1737219632515,0.00131441,103340.0,103330.0,1.10604914]
[1737219634589,0.10694693,103370.0,103360.0,0.096749]
[1737219634791,0.10709816,103370.0,103360.0,0.096749]
[1737219635402,0.01035816,103370.0,103360.0,0.096749]
[1737219635643,0.10709716,103370.0,103360.0,0.096749]
[1737219636183,0.01035816,103370.0,103360.0,0.096749]
[1737219636528,0.00057903,103370.0,103360.0,0.096749]
[1737219637653,0.00057903,103370.0,103360.0,0.21898981]
[1737219638657,0.00057903,103370.0,103360.0,0.60562114]
[1737219639064,0.00057903,103370.0,103360.0,1.20764303]
[1737219639895,0.0004279,103380.0,103370.0,0.269739]
[1737219640129,0.0004279,103380.0,103370.0,0.47691114]
[1737219640711,0.0004279,103380.0,103370.0,0.55921114]
[1737219640890,0.00089881,103400.0,103390.0,0.096721]
[1737219641089,0.00089881,103400.0,103390.0,0.19692881]
[1737219641431,0.00089881,103400.0,103390.0,0.21992881]
[1737219641637,0.00089881,103400.0,103390.0,0.21896181]
[1737219641838,0.03958981,103400.0,103390.0,0.21896181]
[1737219642220,0.13630081,103400.0,103390.0,0.096721]
[1737219642750,0.13630081,103400.0,103380.0,0.290167]
[1737219642751,0.03958981,103400.0,103380.0,0.290167]
[1737219642962,0.09673,103380.0,103360.0,0.50696063]
[1737219643159,0.096739,103370.0,103360.0,0.21672163]
[1737219643362,0.483687,103380.0,103360.0,0.50696363]
[1737219643563,0.379771,103390.0,103370.0,0.096738]
[1737219643564,0.573223,103390.0,103370.0,0.096738]
[1737219643779,0.569949,103390.0,103370.0,0.38944281]
[1737219644189,0.569948,103390.0,103370.0,0.58291381]
[1737219644626,0.666679,103390.0,103370.0,0.096732]
[1737219644839,0.290193,103380.0,103360.0,0.48371]
[1737219645041,0.290193,103380.0,103370.0,0.096739]
[1737219645245,0.09673,103380.0,103370.0,0.096739]
[1737219645781,0.09673,103380.0,103370.0,0.290215]
[1737219645994,0.766681,103390.0,103370.0,0.290215]
[1737219646336,0.09673,103380.0,103370.0,0.290215]
[1737219646576,0.290193,103380.0,103360.0,0.58295281]
[1737219646773,0.290193,103380.0,103360.0,0.77644081]
[1737219647632,0.290193,103380.0,103370.0,0.096739]
[1737219647806,0.09673,103380.0,103370.0,0.096739]
[1737219647962,0.290199,103380.0,103360.0,0.483715]
[1737219648172,0.48367,103380.0,103360.0,0.483715]
[1737219648623,0.290199,103380.0,103360.0,0.677204]
[1737219648944,0.290199,103380.0,103370.0,0.096739]
[1737219648945,0.290159,103380.0,103370.0,0.096739]
[1737219649153,0.290159,103380.0,103360.0,0.483711]
[1737219649351,0.30529537,103380.0,103360.0,0.677199]
[1737219649777,0.30529537,103380.0,103370.0,0.096739]
[1737219650361,0.31518184,103380.0,103370.0,0.096739]
[1737219650568,0.50865284,103380.0,103360.0,0.483712]
[1737219650765,0.50865284,103380.0,103350.0,0.70049063]